fUST/lending_fUST_20251007
["ID","MTS","AMOUNT","RATE_DAILY","PERIOD"]
[389649909,1759767066085,-10078.61,0.00021917,2]
[389649911,1759767066094,-500.0,0.00021917,2]
[389649912,1759767066104,-6117.42,0.00021917,2]
[389649913,1759767066118,-500.0,0.00021917,2]
[389649914,1759767066128,-2736.04,0.00021917,2]
[389649915,1759767066138,-500.0,0.00021917,2]
[389649916,1759767066149,-151.0,0.00021918,2]
[389649917,1759767066159,-151.0,0.00021918,2]
[389649918,1759767066170,-151.0,0.00021918,2]
[389649920,1759767066180,-151.0,0.00021918,2]
[389649921,1759767066191,-151.0,0.00021918,2]
[389649922,1759767066201,-151.0,0.00021918,2]
[389649923,1759767066211,-151.0,0.00021918,2]
[389649924,1759767066222,-151.0,0.00021918,2]
[389649925,1759767066232,-151.0,0.00021918,2]
[389649926,1759767066241,-271.4625,0.00021918,2]
[389649927,1759767066251,-151.0,0.00021918,2]
[389649929,1759767066261,-151.0,0.00021918,2]
[389649930,1759767066271,-151.0,0.00021918,2]
[389649931,1759767066281,-151.0,0.00021918,2]
[389649932,1759767066291,-151.0,0.00021918,2]
[389649933,1759767066300,-151.0,0.00021918,2]
[389649934,1759767066311,-151.0,0.00021918,2]
[389649935,1759767066321,-151.0,0.00021918,2]
[389649936,1759767066333,-391.631457,0.00021918,2]
[389649938,1759767066342,-391.631457,0.00021918,2]
[389649939,1759767066352,-391.631457,0.00021918,2]
[389649940,1759767066363,-391.631457,0.00021918,2]
[389649941,1759767066373,-391.631457,0.00021918,2]
[389649942,1759767066382,-391.631457,0.00021918,2]
[389649943,1759767066393,-391.631457,0.00021918,2]
[389649944,1759767066403,-391.631457,0.00021918,2]
[389649946,1759767066414,-391.631457,0.00021918,2]
[389649947,1759767066424,-391.631457,0.00021918,2]
[389649948,1759767066433,-391.631457,0.00021918,2]
[389649949,1759767066443,-391.631457,0.00021918,2]
[389649950,1759767066454,-391.631457,0.00021918,2]
[389649951,1759767066464,-391.631457,0.00021918,2]
[389649952,1759767066474,-391.631457,0.00021918,2]
[389649953,1759767066484,-391.631457,0.00021918,2]
[389649955,1759767066494,-391.631457,0.00021918,2]
[389649956,1759767066504,-391.631457,0.00021918,2]
[389649957,1759767066514,-391.631457,0.00021918,2]
[389649958,1759767066525,-391.631461,0.00021918,2]
[389649959,1759767066535,-284.504356,0.00021918,2]
[389649960,1759767066545,-851.0,0.00021918,2]
[389649961,1759767066555,-208.0,0.00021924,2]
[389649962,1759767066565,-360.0,0.00021942,2]
[389649964,1759767066576,-14202.83157117,0.00021962,2]
[389649965,1759767066587,-238.0,0.00022,2]
[389649966,1759767066597,-5958.15,0.00022,2]
[389649967,1759767066606,-15150.87,0.00022,2]
[389649968,1759767066617,-1000.0,0.00022029,2]
[389649969,1759767066627,-1000.0,0.00022029,2]
[389649970,1759767066638,-161.23749935,0.00022029,2]
[389649972,1759767066648,-1000.0,0.00022029,2]
[389649973,1759767066657,-265.97230408,0.00022029,2]
[389649974,1759767066667,-1000.0,0.00022029,2]
[389649975,1759767066676,-1000.0,0.00022029,2]
[389649976,1759767066686,-1110.85425846,0.00022029,2]
[389649977,1759767066697,-1000.0,0.00022029,2]
[389649978,1759767066712,-1000.0,0.00022029,2]
[389649979,1759767066721,-1000.0,0.00022029,2]
[389649981,1759767066731,-914.83657846,0.00022029,2]
[389649982,1759767066741,-673.84149087,0.00022029,2]
[389649983,1759767066751,-1000.0,0.00022029,2]
[389649984,1759767066761,-1000.0,0.00022029,2]
[389649985,1759767066771,-1000.0,0.00022029,2]
[389649986,1759767066781,-576.07077609,0.00022029,2]
[389649987,1759767066791,-717.40333425,0.00022029,2]
[389649989,1759767066801,-1000.0,0.00022029,2]
[389649990,1759767066811,-1000.0,0.00022029,2]
[389649991,1759767066821,-1000.0,0.00022029,2]
[389649992,1759767066831,-1000.0,0.00022029,2]
[389649993,1759767066841,-1000.0,0.00022029,2]
[389649994,1759767066851,-1000.0,0.00022029,2]
[389649995,1759767066861,-1000.0,0.00022029,2]
[389649996,1759767066872,-1000.0,0.00022029,2]
[389649998,1759767066882,-1000.0,0.00022029,2]
[389649999,1759767066892,-1000.0,0.00022029,2]
[389650000,1759767066902,-1000.0,0.00022029,2]
[389650001,1759767066912,-1000.0,0.00022029,2]
[389650002,1759767066923,-242.25284394,0.00022029,2]
[389650003,1759767066933,-1000.0,0.00022029,2]
[389650004,1759767066943,-155.5103344,0.0002212,2]
[389650005,1759767066954,-500.0,0.00022123,2]
[389650007,1759767066964,-1000.0,0.0002213,2]
[389650008,1759767066974,-208.0,0.00022142,2]
[389650009,1759767066985,-500.0,0.00022191,2]
[389650010,1759767066995,-524.88778294,0.00022191,2]
[389650011,1759767067006,-660.28,0.00022191,2]
[389650012,1759767067016,-500.0,0.00022191,2]
[389650013,1759767067026,-715.95,0.00022191,2]
[389650016,1759767067187,-500.0,0.00022191,2]
[389650017,1759767067198,-500.0,0.00022191,2]
[389650018,1759767067208,-1298.82,0.00022191,2]
[389650020,1759767067222,-1584.28,0.00022191,2]
[389650021,1759767067231,-500.0,0.00022191,2]
[389650022,1759767067241,-500.0,0.00022191,2]
[389650023,1759767067250,-500.0,0.00022191,2]
[389650024,1759767067260,-500.0,0.00022191,2]
[389650025,1759767067270,-1201.45,0.00022191,2]
[389650026,1759767067281,-500.0,0.00022191,2]
[389650027,1759767067291,-500.0,0.00022191,2]
[389650028,1759767067302,-500.0,0.00022191,2]
[389650030,1759767067311,-301.92954271,0.00022191,2]
[389650031,1759767067321,-1059.46,0.00022191,2]
[389650032,1759767067331,-1068.08,0.00022191,2]
[389650033,1759767067341,-500.0,0.00022191,2]
[389650034,1759767067351,-564.81,0.00022191,2]
[389650035,1759767067360,-500.0,0.00022191,2]
[389650036,1759767067369,-1075.47,0.00022191,2]
[389650037,1759767067379,-500.0,0.00022191,2]
[389650038,1759767067389,-500.0,0.00022191,2]
[389650040,1759767067399,-500.0,0.00022191,2]
[389650041,1759767067408,-500.0,0.00022191,2]
[389650042,1759767067418,-500.0,0.00022191,2]
[389650043,1759767067430,-1188.26,0.00022191,2]
[389650044,1759767067440,-874.79,0.00022191,2]
[389650045,1759767067451,-1743.05,0.00022191,2]
[389650046,1759767067461,-590.46,0.00022191,2]
[389650048,1759767067471,-1342.72,0.00022191,2]
[389650049,1759767067481,-801.38,0.00022191,2]
[389650050,1759767067491,-520.52,0.00022191,2]
[389650051,1759767067500,-566.39,0.00022191,2]
[389650052,1759767067510,-1020.43,0.00022191,2]
[389650053,1759767067520,-534.37,0.00022191,2]
[389650054,1759767067529,-612.54,0.00022191,2]
[389650055,1759767067537,-500.0,0.00022191,2]
[389650056,1759767067547,-665.81,0.00022191,2]
[389650058,1759767067560,-4890.47,0.00022191,2]
[389650059,1759767067571,-988.39,0.00022191,2]
[389650060,1759767067581,-3211.78,0.00022191,2]
[389650061,1759767067592,-500.0,0.00022191,2]
[389650062,1759767067602,-500.0,0.00022191,2]
[389650063,1759767067613,-504.68,0.00022191,2]
[389650064,1759767067623,-500.0,0.00022191,2]
[389650066,1759767067637,-1164.13,0.00022191,2]
[389650067,1759767067646,-1461.14,0.00022191,2]
[389650068,1759767067655,-614.43,0.00022191,2]
[389650069,1759767067664,-500.0,0.00022191,2]
[389650070,1759767067674,-873.82,0.00022191,2]
[389650071,1759767067685,-500.0,0.00022191,2]
[389650072,1759767067695,-1756.41,0.00022191,2]
[389650073,1759767067705,-548.11,0.00022191,2]
[389650075,1759767067714,-500.0,0.00022191,2]
[389650076,1759767067724,-741.0,0.00022191,2]
[389650077,1759767067734,-500.0,0.00022191,2]
[389650078,1759767067746,-1292.37,0.00022191,2]
[389650079,1759767067757,-1057.32,0.00022191,2]
[389650080,1759767067767,-1192.5,0.00022191,2]
[389650081,1759767067778,-613.38,0.00022191,2]
[389650082,1759767067788,-500.0,0.00022191,2]
[389650084,1759767067799,-2502.01,0.00022191,2]
[389650085,1759767067809,-735.61,0.00022191,2]
[389650086,1759767067819,-500.0,0.00022191,2]
[389650087,1759767067829,-889.67,0.00022191,2]
[389650088,1759767067841,-500.0,0.00022191,2]
[389650089,1759767067851,-4247.91,0.00022191,2]
[389650090,1759767067862,-1077.11,0.00022191,2]
[389650091,1759767067872,-10027.14,0.00022191,2]
[389650093,1759767067883,-3687.49,0.00022191,2]
[389650094,1759767067893,-576.94,0.00022191,2]
[389650095,1759767067903,-743.19,0.00022191,2]
[389650096,1759767067914,-1944.29,0.00022191,2]
[389650097,1759767067924,-559.02,0.00022191,2]
[389650098,1759767067934,-697.83,0.00022191,2]
[389650099,1759767067944,-580.0,0.00022191,2]
[389650101,1759767067954,-619.74,0.00022191,2]
[389650102,1759767067964,-500.0,0.00022191,2]
[389650103,1759767067974,-860.18,0.00022191,2]
[389650104,1759767067983,-500.0,0.00022191,2]
[389650105,1759767067994,-1426.97,0.00022191,2]
[389650106,1759767068003,-1691.79,0.00022191,2]
[389650107,1759767068014,-660.26,0.00022191,2]
[389650108,1759767068024,-551.82,0.00022191,2]
[389650110,1759767068038,-1454.51,0.00022191,2]
[389650111,1759767068048,-10078.61,0.00022191,2]
[389650112,1759767068057,-500.0,0.00022191,2]
[389650113,1759767068067,-6117.42,0.00022191,2]
[389650114,1759767068078,-500.0,0.00022191,2]
[389650115,1759767068089,-2736.04,0.00022191,2]
[389650116,1759767068098,-448.01077996,0.00022191,2]
[389650117,1759767068108,-851.0,0.00022192,2]
[389650119,1759767068119,-1000.0,0.000222,2]
[389650120,1759767068128,-1000.0,0.000222,2]
[389650121,1759767068138,-1000.0,0.000222,2]
[389650122,1759767068148,-1000.0,0.000222,2]
[389650123,1759767068158,-1000.0,0.000222,2]
[389650124,1759767068168,-1000.0,0.000222,2]
[389650125,1759767068178,-1000.0,0.000222,2]
[389650126,1759767068189,-1000.0,0.000222,2]
[389650128,1759767068199,-1000.0,0.000222,2]
[389650129,1759767068209,-1000.0,0.000222,2]
[389650130,1759767068219,-390.635915,0.000222,2]
[389650131,1759767068231,-3000.0,0.00022212,2]
[389650132,1759767068241,-3000.0,0.00022212,2]
[389650133,1759767068254,-208.0,0.0002228,2]
[389650134,1759767068266,-500.0,0.00022333,2]
[389650135,1759767068276,-150.54271305,0.00022333,2]
[389650137,1759767068286,-500.0,0.00022333,2]
[389650138,1759767068295,-255.62948787,0.00022333,2]
[389650139,1759767068305,-500.0,0.00022333,2]
[389650140,1759767068315,-500.0,0.00022333,2]
[389650141,1759767068325,-500.0,0.00022333,2]
[389650142,1759767068337,-500.0,0.00022333,2]
[389650143,1759767068347,-500.0,0.00022333,2]
[389650144,1759767068358,-500.0,0.00022333,2]
[389650146,1759767068369,-500.0,0.00022334,2]
[389650147,1759767068379,-200.16600572,0.00022334,2]
[389650148,1759767068389,-200.1689984,0.00022334,2]
[389650149,1759767068400,-2500.0,0.00022339,2]
[389650150,1759767068410,-2500.0,0.00022434,2]
[389650151,1759767068420,-295.34,0.00022465,2]
[389650152,1759767068430,-660.28,0.00022465,2]
[389650153,1759767068440,-500.0,0.00022465,2]
[389650155,1759767068450,-715.95,0.00022465,2]
[389650156,1759767068460,-500.0,0.00022465,2]
[389650157,1759767068471,-500.0,0.00022465,2]
[389650158,1759767068481,-1298.82,0.00022465,2]
[389650159,1759767068491,-1584.28,0.00022465,2]
[389650160,1759767068502,-500.0,0.00022465,2]
[389650161,1759767068512,-500.0,0.00022465,2]
[389650162,1759767068522,-500.0,0.00022465,2]
[389650164,1759767068532,-500.0,0.00022465,2]
[389650165,1759767068541,-1201.45,0.00022465,2]
[389650166,1759767068551,-500.0,0.00022465,2]
[389650167,1759767068561,-296.52,0.00022465,2]
[389650168,1759767068571,-500.0,0.00022465,2]
[389650169,1759767068581,-1059.46,0.00022465,2]
[389650170,1759767068592,-1068.08,0.00022465,2]
[389650172,1759767068602,-500.0,0.00022465,2]
[389650173,1759767068613,-564.81,0.00022465,2]
[389650174,1759767068624,-584.81585762,0.00022465,2]
[389650175,1759767068634,-1075.47,0.00022465,2]
[389650176,1759767068644,-500.0,0.00022465,2]
[389650177,1759767068655,-500.0,0.00022465,2]
[389650178,1759767068668,-500.0,0.00022465,2]
[389650180,1759767068678,-500.0,0.00022465,2]
[389650181,1759767068687,-500.0,0.00022465,2]
[389650182,1759767068697,-1188.26,0.00022465,2]
[389650183,1759767068706,-874.79,0.00022465,2]
[389650184,1759767068716,-1743.05,0.00022465,2]
[389650185,1759767068726,-590.46,0.00022465,2]
[389650186,1759767068736,-1342.72,0.00022465,2]
[389650187,1759767068746,-801.38,0.00022465,2]
[389650188,1759767068756,-520.52,0.00022465,2]
[389650190,1759767068767,-566.39,0.00022465,2]
[389650191,1759767068777,-1020.43,0.00022465,2]
[389650192,1759767068787,-534.37,0.00022465,2]
[389650193,1759767068798,-612.54,0.00022465,2]
[389650194,1759767068808,-457.95998347,0.00022465,2]
[389650195,1759767068819,-665.81,0.00022465,2]
[389650196,1759767068829,-4890.47,0.00022465,2]
[389650197,1759767068842,-988.39,0.00022465,2]
[389650199,1759767068852,-3211.78,0.00022465,2]
[389650200,1759767068863,-500.0,0.00022465,2]
[389650201,1759767068874,-500.0,0.00022465,2]
[389650202,1759767068884,-500.0,0.00022465,2]
[389650203,1759767068894,-504.68,0.00022465,2]
[389650204,1759767068905,-1164.13,0.00022465,2]
[389650205,1759767068916,-1461.14,0.00022465,2]
[389650207,1759767068926,-614.43,0.00022465,2]
[389650208,1759767068935,-500.0,0.00022465,2]
[389650209,1759767068945,-873.82,0.00022465,2]
[389650210,1759767068955,-500.0,0.00022465,2]
[389650211,1759767068966,-1756.41,0.00022465,2]
[389650212,1759767068975,-548.11,0.00022465,2]
[389650213,1759767068985,-500.0,0.00022465,2]
[389650214,1759767068995,-741.0,0.00022465,2]
[389650215,1759767069005,-500.0,0.00022465,2]
[389650217,1759767069016,-1292.37,0.00022465,2]
[389650218,1759767069026,-1057.32,0.00022465,2]
[389650219,1759767069040,-1192.5,0.00022465,2]
[389650220,1759767069053,-500.0,0.00022465,2]
[389650221,1759767069064,-2502.01,0.00022465,2]
[389650222,1759767069076,-735.61,0.00022465,2]
[389650223,1759767069093,-500.0,0.00022465,2]
[389650225,1759767069104,-889.67,0.00022465,2]
[389650226,1759767069114,-500.0,0.00022465,2]
[389650227,1759767069124,-4247.91,0.00022465,2]
[389650228,1759767069135,-1077.11,0.00022465,2]
[389650229,1759767069145,-10027.14,0.00022465,2]
[389650230,1759767069155,-3687.49,0.00022465,2]
[389650231,1759767069165,-576.94,0.00022465,2]
[389650232,1759767069176,-743.19,0.00022465,2]
[389650233,1759767069187,-1944.29,0.00022465,2]
[389650235,1759767069197,-559.02,0.00022465,2]
[389650236,1759767069208,-697.83,0.00022465,2]
[389650237,1759767069218,-580.0,0.00022465,2]
[389650238,1759767069229,-619.74,0.00022465,2]
[389650239,1759767069239,-519.84,0.00022465,2]
[389650240,1759767069249,-860.18,0.00022465,2]
[389650241,1759767069259,-500.0,0.00022465,2]
[389650242,1759767069270,-1426.97,0.00022465,2]
[389650243,1759767069280,-1691.79,0.00022465,2]
[389650244,1759767069290,-660.26,0.00022465,2]
[389650246,1759767069301,-551.82,0.00022465,2]
[389650247,1759767069312,-1454.51,0.00022465,2]
[389650248,1759767069322,-10078.61,0.00022465,2]
[389650249,1759767069335,-500.0,0.00022465,2]
[389650250,1759767069346,-6117.42,0.00022465,2]
[389650251,1759767069355,-500.0,0.00022465,2]
[389650252,1759767069365,-2736.04,0.00022465,2]
[389650253,1759767069375,-851.0,0.00022466,2]
[389650255,1759767069385,-460.0,0.0002249,2]
[389650256,1759767069395,-1019.19583155,0.000225,2]
[389650257,1759767069405,-1000.0,0.000225,4]
[389650258,1759767069415,-500.0,0.00022541,2]
[389650259,1759767069425,-1500.0,0.00022577,2]
[389650260,1759767069436,-1500.0,0.00022577,2]
[389650261,1759767069445,-1500.0,0.00022577,2]
[389650262,1759767069455,-1500.0,0.00022577,2]
[389650263,1759767069465,-1500.0,0.00022577,2]
[389650265,1759767069474,-1500.0,0.00022577,2]
[389650266,1759767069484,-1500.0,0.00022577,2]
[389650267,1759767069494,-1500.0,0.00022577,2]
[389650268,1759767069504,-1500.0,0.00022577,2]
[389650269,1759767069515,-1500.0,0.00022577,2]
[389650270,1759767069524,-1500.0,0.00022577,2]
[389650271,1759767069534,-1500.0,0.00022577,2]
[389650272,1759767069544,-1500.0,0.00022577,2]
[389650274,1759767069554,-1500.0,0.00022577,2]
[389650275,1759767069564,-1500.0,0.00022577,2]
[389650276,1759767069574,-1500.0,0.00022577,2]
[389650277,1759767069585,-1500.0,0.00022577,2]
[389650278,1759767069595,-600.44419782,0.00022577,2]
[389650279,1759767069605,-1500.0,0.00022577,2]
[389650280,1759767069615,-1085.76448609,0.00022577,2]
[389650281,1759767069625,-1500.0,0.00022577,2]
[389650283,1759767069685,-503.19125462,0.00022577,2]
[389650284,1759767069696,-1500.0,0.00022577,2]
[389650285,1759767069707,-1500.0,0.00022577,2]
[389650287,1759767069717,-157.26,0.00022602,2]
[389650288,1759767069727,-500.0,0.00022608,2]
[389650289,1759767069737,-500.0,0.00022611,2]
[389650290,1759767069746,-500.0,0.00022611,2]
[389650291,1759767069755,-500.0,0.00022611,2]
[389650292,1759767069765,-500.0,0.00022611,2]
[389650293,1759767069775,-500.0,0.00022611,2]
[389650294,1759767069785,-500.0,0.00022611,2]
[389650295,1759767069794,-500.0,0.00022611,2]
[389650297,1759767069804,-500.0,0.00022611,2]
[389650298,1759767069813,-500.0,0.00022611,2]
[389650299,1759767069823,-800.0,0.00022645,2]
[389650300,1759767069832,-524.52447964,0.00022656,2]
[389650301,1759767069842,-1500.0,0.00022677,2]
[389650302,1759767069852,-500.0,0.00022679,2]
[389650303,1759767069862,-208.0,0.00022702,2]
[389650304,1759767069873,-660.28,0.00022739,2]
[389650306,1759767069883,-500.0,0.00022739,2]
[389650307,1759767069893,-715.95,0.00022739,2]
[389650308,1759767069902,-500.0,0.00022739,2]
[389650309,1759767069911,-500.0,0.00022739,2]
[389650310,1759767069921,-1298.82,0.00022739,2]
[389650311,1759767069931,-1584.28,0.00022739,2]
[389650312,1759767069940,-500.0,0.00022739,2]
[389650313,1759767069950,-500.0,0.00022739,2]
[389650315,1759767069959,-500.0,0.00022739,2]
[389650316,1759767069969,-199.87,0.00022739,2]
[389650317,1759767069988,-1201.45,0.00022739,2]
[389650318,1759767069999,-500.0,0.00022739,2]
[389650319,1759767070008,-500.0,0.00022739,2]
[389650320,1759767070017,-1059.46,0.00022739,2]
[389650321,1759767070027,-1068.08,0.00022739,2]
[389650322,1759767070041,-500.0,0.00022739,2]
[389650324,1759767070055,-564.81,0.00022739,2]
[389650325,1759767070065,-1075.47,0.00022739,2]
[389650326,1759767070075,-437.56,0.00022739,2]
[389650327,1759767070088,-500.0,0.00022739,2]
[389650328,1759767070097,-500.0,0.00022739,2]
[389650329,1759767070108,-500.0,0.00022739,2]
[389650330,1759767070118,-500.0,0.00022739,2]
[389650332,1759767070127,-1188.26,0.00022739,2]
[389650333,1759767070137,-874.79,0.00022739,2]
[389650334,1759767070146,-1743.05,0.00022739,2]
[389650335,1759767070156,-590.46,0.00022739,2]
[389650336,1759767070166,-1342.72,0.00022739,2]
[389650337,1759767070175,-801.38,0.00022739,2]
[389650338,1759767070184,-520.52,0.00022739,2]
[389650339,1759767070195,-566.39,0.00022739,2]
[389650341,1759767070204,-1020.43,0.00022739,2]
[389650342,1759767070214,-534.37,0.00022739,2]
[389650343,1759767070224,-612.54,0.00022739,2]
[389650344,1759767070234,-665.81,0.00022739,2]
[389650345,1759767070243,-4890.47,0.00022739,2]
[389650346,1759767070254,-988.39,0.00022739,2]
[389650347,1759767070264,-3211.78,0.00022739,2]
[389650348,1759767070273,-500.0,0.00022739,2]
[389650350,1759767070283,-500.0,0.00022739,2]
[389650351,1759767070293,-500.0,0.00022739,2]
[389650352,1759767070303,-504.68,0.00022739,2]
[389650353,1759767070312,-1164.13,0.00022739,2]
[389650354,1759767070322,-1461.14,0.00022739,2]
[389650355,1759767070332,-614.43,0.00022739,2]
[389650356,1759767070343,-500.0,0.00022739,2]
[389650357,1759767070353,-873.82,0.00022739,2]
[389650359,1759767070363,-500.0,0.00022739,2]
[389650360,1759767070373,-1756.41,0.00022739,2]
[389650361,1759767070383,-548.11,0.00022739,2]
[389650362,1759767070393,-500.0,0.00022739,2]
[389650363,1759767070403,-741.0,0.00022739,2]
[389650364,1759767070413,-500.0,0.00022739,2]
[389650365,1759767070423,-1292.37,0.00022739,2]
[389650366,1759767070433,-1192.5,0.00022739,2]
[389650368,1759767070444,-1057.32,0.00022739,2]
[389650369,1759767070453,-198.58656003,0.00022739,2]
[389650370,1759767070463,-2502.01,0.00022739,2]
[389650371,1759767070472,-735.61,0.00022739,2]
[389650372,1759767070482,-500.0,0.00022739,2]
[389650373,1759767070492,-889.67,0.00022739,2]
[389650374,1759767070502,-432.62038977,0.00022739,2]
[389650376,1759767070511,-4247.91,0.00022739,2]
[389650377,1759767070521,-1077.11,0.00022739,2]
[389650378,1759767070532,-10027.14,0.00022739,2]
[389650379,1759767070542,-3687.49,0.00022739,2]
[389650380,1759767070552,-576.94,0.00022739,2]
[389650381,1759767070562,-743.19,0.00022739,2]
[389650382,1759767070573,-1944.29,0.00022739,2]
[389650384,1759767070582,-559.02,0.00022739,2]
[389650385,1759767070593,-697.83,0.00022739,2]
[389650386,1759767070603,-580.0,0.00022739,2]
[389650387,1759767070613,-619.74,0.00022739,2]
[389650388,1759767070627,-860.18,0.00022739,2]
[389650389,1759767070637,-500.0,0.00022739,2]
[389650390,1759767070647,-1426.97,0.00022739,2]
[389650392,1759767070657,-1691.79,0.00022739,2]
[389650393,1759767070668,-660.26,0.00022739,2]
[389650394,1759767070677,-551.82,0.00022739,2]
[389650395,1759767070687,-1454.51,0.00022739,2]
[389650396,1759767070697,-10078.61,0.00022739,2]
[389650397,1759767070707,-500.0,0.00022739,2]
[389650398,1759767070717,-6117.42,0.00022739,2]
[389650399,1759767070727,-500.0,0.00022739,2]
[389650401,1759767070737,-2736.04,0.00022739,2]
[389650402,1759767070747,-851.0,0.0002274,2]
[389650403,1759767070758,-170.63451952,0.0002275,13]
[389650404,1759767070768,-3500.0,0.0002276,2]
[389650405,1759767070778,-3500.0,0.0002276,2]
[389650406,1759767070789,-587.0,0.00022775,2]
[389650407,1759767070799,-1276.477096,0.00022783,2]
[389650409,1759767070809,-208.0,0.00022803,2]
[389650410,1759767070819,-158.059878,0.00022823,19]
[389650411,1759767070828,-600.0,0.00022863,2]
[389650412,1759767070839,-1000.0,0.00022881,2]
[389650413,1759767070849,-1000.0,0.00022881,2]
[389650414,1759767070858,-1000.0,0.00022881,2]
[389650415,1759767070868,-1000.0,0.00022881,2]
[389650416,1759767070878,-1000.0,0.00022881,2]
[389650418,1759767070888,-601.92462104,0.00022881,2]
[389650419,1759767070898,-1000.0,0.00022881,2]
[389650420,1759767070909,-1000.0,0.00022881,2]
[389650421,1759767070919,-1000.0,0.00022882,2]
[389650422,1759767070929,-3000.0,0.00022887,2]
[389650423,1759767070938,-208.0,0.00022896,2]
[389650424,1759767070948,-2000.0,0.000229,2]
[389650425,1759767070957,-2000.0,0.000229,2]
[389650427,1759767070967,-500.0,0.00022916,2]
[389650428,1759767070977,-168.0,0.00022933,2]
[389650429,1759767070986,-500.0,0.00022973,2]
[389650430,1759767070996,-500.0,0.00022973,2]
[389650431,1759767071006,-3000.0,0.00022982,2]
[389650432,1759767071015,-168.0,0.00022988,2]
[389650433,1759767071026,-499.3,0.00022994,2]
[389650435,1759767071042,-234.17717776,0.00023,3]
[389650436,1759767071052,-160.0,0.00023,3]
[389650437,1759767071062,-47504.43001982,0.00023,3]
[389650438,1759767071072,-5317.52655452,0.00023,2]
[389650439,1759767071085,-160.0,0.00023,3]
[389650440,1759767071094,-160.0,0.00023,3]
[389650441,1759767071104,-293.61728183,0.00023,3]
[389650443,1759767071117,-234.17717776,0.00023,3]
[389650444,1759767071126,-1041.66666667,0.00023,2]
[389650445,1759767071136,-160.0,0.00023,2]
[389650446,1759767071147,-250000.0,0.00023,2]
[389650447,1759767071156,-660.28,0.00023013,2]
[389650448,1759767071166,-500.0,0.00023013,2]
[389650449,1759767071177,-715.95,0.00023013,2]
[389650450,1759767071187,-305.41104476,0.00023013,2]
[389650452,1759767071198,-500.0,0.00023013,2]
[389650453,1759767071208,-1298.82,0.00023013,2]
[389650454,1759767071218,-1584.28,0.00023013,2]
[389650455,1759767071228,-282.80407711,0.00023013,2]
[389650456,1759767071238,-500.0,0.00023013,2]
[389650457,1759767071248,-500.0,0.00023013,2]
[389650458,1759767071259,-1201.45,0.00023013,2]
[389650459,1759767071268,-500.0,0.00023013,2]
[389650461,1759767071278,-441.41580281,0.00023013,2]
[389650462,1759767071288,-1059.46,0.00023013,2]
[389650463,1759767071298,-1068.08,0.00023013,2]
[389650464,1759767071309,-315.86,0.00023013,2]
[389650465,1759767071319,-564.81,0.00023013,2]
[389650466,1759767071329,-1075.47,0.00023013,2]
[389650467,1759767071340,-500.0,0.00023013,2]
[389650468,1759767071351,-240.65,0.00023013,2]
[389650469,1759767071361,-500.0,0.00023013,2]
[389650471,1759767071371,-500.0,0.00023013,2]
[389650472,1759767071380,-1188.26,0.00023013,2]
[389650473,1759767071391,-874.79,0.00023013,2]
[389650474,1759767071401,-1743.05,0.00023013,2]